[Event "*** Titled Tuesday Blitz"]
[Site "Chess.com"]
[Date "2021.03.30"]
[Round "2"]
[White "chessmadara"]
[Black "Vasily85"]
[Result "1-0"]
[WhiteElo "2211"]
[BlackElo "2407"]
[TimeControl "180+1"]
[EndTime "10:14:01 PDT"]
[Termination "chessmadara won by checkmate"]

1. e4 {[%clk 0:03:00.9]} 1... c5 {[%clk 0:03:00.1]} 2. Nf3 {[%clk 0:03:00.6]}
2... e6 {[%clk 0:03:00.4]} 3. d4 {[%clk 0:03:00]} 3... cxd4 {[%clk 0:03:01.3]}
4. Nxd4 {[%clk 0:03:00.4]} 4... Nc6 {[%clk 0:03:02]} 5. Nc3 {[%clk 0:02:59]}
5... Qc7 {[%clk 0:03:02]} 6. Be2 {[%clk 0:02:54.3]} 6... a6 {[%clk 0:03:02]} 7.
O-O {[%clk 0:02:51.4]} 7... Nf6 {[%clk 0:03:02]} 8. Be3 {[%clk 0:02:49.8]} 8...
Bb4 {[%clk 0:02:59.3]} 9. Na4 {[%clk 0:02:44.6]} 9... Be7 {[%clk 0:02:59.7]} 10.
Nxc6 {[%clk 0:02:42.8]} 10... bxc6 {[%clk 0:03:00.6]} 11. Nb6 {[%clk 0:02:42.2]}
11... Rb8 {[%clk 0:03:01.2]} 12. Nxc8 {[%clk 0:02:42]} 12... Qxc8 {[%clk
0:03:02.1]} 13. Bd3 {[%clk 0:02:36.3]} 13... d5 {[%clk 0:02:37]} 14. e5 {[%clk
0:02:27.4]} 14... Nd7 {[%clk 0:02:35.3]} 15. f4 {[%clk 0:02:08.1]} 15... Rxb2
{[%clk 0:02:32.1]} 16. Qg4 {[%clk 0:02:03.4]} 16... O-O {[%clk 0:02:24.5]} 17.
Rf3 {[%clk 0:01:54.1]} 17... g6 {[%clk 0:02:03.9]} 18. Rh3 {[%clk 0:01:49.7]}
18... Bc5 {[%clk 0:01:44.5]} 19. Bxc5 {[%clk 0:01:46.2]} 19... Nxc5 {[%clk
0:01:45.4]} 20. Qh4 {[%clk 0:01:43.6]} 20... Nxd3 {[%clk 0:01:20.3]} 21. Qxh7#
{[%clk 0:01:42.6]} 1-0

[Event "*** Titled Tuesday Blitz"]
[Site "Chess.com"]
[Date "2021.03.30"]
[Round "2"]
[White "mbachez"]
[Black "Rozum_Ivan"]
[Result "1-0"]
[WhiteElo "2462"]
[BlackElo "2726"]
[TimeControl "180+1"]
[EndTime "10:14:03 PDT"]
[Termination "mbachez won by resignation"]

1. e4 {[%clk 0:02:59.5]} 1... c6 {[%clk 0:02:59.9]} 2. Nf3 {[%clk 0:02:59.3]}
2... d5 {[%clk 0:03:00.6]} 3. Nc3 {[%clk 0:02:59.5]} 3... Bg4 {[%clk 0:03:00.5]}
4. h3 {[%clk 0:02:59.2]} 4... Bxf3 {[%clk 0:03:00.9]} 5. Qxf3 {[%clk 0:02:59.5]}
5... Nf6 {[%clk 0:03:01.4]} 6. d3 {[%clk 0:02:58.8]} 6... e6 {[%clk 0:03:00.2]}
7. Bd2 {[%clk 0:02:58.7]} 7... Bc5 {[%clk 0:02:59.4]} 8. g4 {[%clk 0:02:57.8]}
8... O-O {[%clk 0:02:59.1]} 9. Bg2 {[%clk 0:02:57.7]} 9... Nbd7 {[%clk 0:02:58]}
10. g5 {[%clk 0:02:57.6]} 10... dxe4 {[%clk 0:02:45.8]} 11. dxe4 {[%clk
0:02:54.3]} 11... Ne5 {[%clk 0:02:45.7]} 12. Qe2 {[%clk 0:02:53.1]} 12... Nfd7
{[%clk 0:02:43.1]} 13. f4 {[%clk 0:02:50.7]} 13... Ng6 {[%clk 0:02:43.3]} 14. h4
{[%clk 0:02:49.3]} 14... e5 {[%clk 0:02:34.9]} 15. O-O-O {[%clk 0:02:41.4]}
15... exf4 {[%clk 0:02:29]} 16. h5 {[%clk 0:02:40.6]} 16... Nge5 {[%clk
0:02:25.5]} 17. Bxf4 {[%clk 0:02:40.1]} 17... Qe7 {[%clk 0:02:24.7]} 18. Bh3
{[%clk 0:02:24.2]} 18... Rad8 {[%clk 0:02:24.2]} 19. Bf5 {[%clk 0:02:21.4]}
19... b5 {[%clk 0:02:20.1]} 20. Qh2 {[%clk 0:02:16.2]} 20... g6 {[%clk
0:02:05.4]} 21. hxg6 {[%clk 0:02:14.3]} 21... fxg6 {[%clk 0:02:06.3]} 22. Be6+
{[%clk 0:02:08.7]} 1-0

[Event "*** Titled Tuesday Blitz"]
[Site "Chess.com"]
[Date "2021.03.30"]
[Round "2"]
[White "Manukyan_Artak"]
[Black "barbara25"]
[Result "1-0"]
[WhiteElo "2447"]
[BlackElo "2240"]
[TimeControl "180+1"]
[EndTime "10:14:03 PDT"]
[Termination "Manukyan_Artak won by resignation"]

1. e4 {[%clk 0:02:57]} 1... c5 {[%clk 0:02:59.6]} 2. Nf3 {[%clk 0:02:56.5]} 2...
d6 {[%clk 0:02:57.7]} 3. Bb5+ {[%clk 0:02:54.9]} 3... Nd7 {[%clk 0:02:56.6]} 4.
O-O {[%clk 0:02:54.5]} 4... Nf6 {[%clk 0:02:56.2]} 5. Re1 {[%clk 0:02:54.2]}
5... e5 {[%clk 0:02:56.2]} 6. c3 {[%clk 0:02:54]} 6... Be7 {[%clk 0:02:56.5]} 7.
d4 {[%clk 0:02:53.8]} 7... O-O {[%clk 0:02:57]} 8. Bg5 {[%clk 0:02:45.9]} 8...
cxd4 {[%clk 0:02:54.3]} 9. cxd4 {[%clk 0:02:45.6]} 9... exd4 {[%clk 0:02:52.5]}
10. Nxd4 {[%clk 0:02:45.2]} 10... a6 {[%clk 0:02:52.6]} 11. Bf1 {[%clk
0:02:43.9]} 11... Ne5 {[%clk 0:02:52.5]} 12. Nc3 {[%clk 0:02:42.5]} 12... Bd7
{[%clk 0:02:48.4]} 13. Nf5 {[%clk 0:02:34.4]} 13... Bxf5 {[%clk 0:02:47.7]} 14.
exf5 {[%clk 0:02:35.3]} 14... Ned7 {[%clk 0:02:44]} 15. g4 {[%clk 0:02:27.1]}
15... Re8 {[%clk 0:02:43.1]} 16. Bf4 {[%clk 0:02:22.8]} 16... Ne5 {[%clk
0:02:41.4]} 17. h3 {[%clk 0:02:15.7]} 17... Rc8 {[%clk 0:02:39.8]} 18. Bg2
{[%clk 0:02:14.6]} 18... Qc7 {[%clk 0:02:28.9]} 19. Rc1 {[%clk 0:02:11.4]} 19...
b5 {[%clk 0:02:27.9]} 20. g5 {[%clk 0:02:06.7]} 20... Nfd7 {[%clk 0:02:23.3]}
21. Nxb5 {[%clk 0:01:46.4]} 21... Qb6 {[%clk 0:02:22.8]} 22. Nc3 {[%clk
0:01:40]} 22... Qxb2 {[%clk 0:02:20.4]} 23. Nd5 {[%clk 0:01:40.1]} 23... Rxc1
{[%clk 0:02:18.5]} 24. Bxc1 {[%clk 0:01:39.5]} 24... Qb8 {[%clk 0:02:14.8]} 25.
Nxe7+ {[%clk 0:01:31.3]} 25... Rxe7 {[%clk 0:02:14.9]} 26. f4 {[%clk 0:01:31.6]}
26... Nc6 {[%clk 0:02:06.6]} 27. Bxc6 {[%clk 0:01:27.1]} 27... Rxe1+ {[%clk
0:02:06.5]} 28. Qxe1 {[%clk 0:01:27.1]} 28... Qb6+ {[%clk 0:02:06.6]} 29. Kh2
{[%clk 0:01:24.9]} 29... Qxc6 {[%clk 0:02:06.8]} 30. Qe8+ {[%clk 0:01:24.5]}
30... Nf8 {[%clk 0:02:06.8]} 31. Qxc6 {[%clk 0:01:24.5]} 1-0

[Event "*** Titled Tuesday Blitz"]
[Site "Chess.com"]
[Date "2021.03.30"]
[Round "2"]
[White "Synctel"]
[Black "Spriteball"]
[Result "0-1"]
[WhiteElo "2005"]
[BlackElo "2384"]
[TimeControl "180+1"]
[EndTime "10:14:17 PDT"]
[Termination "Spriteball won by resignation"]

1. e4 {[%clk 0:03:00.9]} 1... e5 {[%clk 0:02:58.5]} 2. Nf3 {[%clk 0:03:00.2]}
2... Nc6 {[%clk 0:02:58.4]} 3. Bc4 {[%clk 0:02:57.5]} 3... Nf6 {[%clk
0:02:58.3]} 4. d4 {[%clk 0:02:54.8]} 4... exd4 {[%clk 0:02:54.8]} 5. e5 {[%clk
0:02:55]} 5... d5 {[%clk 0:02:54.3]} 6. Bb5 {[%clk 0:02:54.3]} 6... Ne4 {[%clk
0:02:54.1]} 7. Nxd4 {[%clk 0:02:53.2]} 7... Bd7 {[%clk 0:02:54]} 8. Bxc6 {[%clk
0:02:53.7]} 8... bxc6 {[%clk 0:02:54.8]} 9. O-O {[%clk 0:02:52.6]} 9... Bc5
{[%clk 0:02:53.5]} 10. f3 {[%clk 0:02:53.1]} 10... Ng5 {[%clk 0:02:53.1]} 11. f4
{[%clk 0:02:53.8]} 11... Ne4 {[%clk 0:02:51.9]} 12. Be3 {[%clk 0:02:54.4]} 12...
Bb6 {[%clk 0:02:48.8]} 13. Nd2 {[%clk 0:02:40.7]} 13... Nxd2 {[%clk 0:02:46.6]}
14. Qxd2 {[%clk 0:02:39.8]} 14... c5 {[%clk 0:02:36.3]} 15. Nb3 {[%clk
0:02:35.4]} 15... d4 {[%clk 0:02:35]} 16. Bf2 {[%clk 0:02:36]} 16... Bc6 {[%clk
0:02:21.3]} 17. c3 {[%clk 0:02:21.1]} 17... Qd5 {[%clk 0:02:15.6]} 18. Bg3
{[%clk 0:02:16]} 18... O-O {[%clk 0:02:00.5]} 19. Rad1 {[%clk 0:02:06.6]} 19...
Rad8 {[%clk 0:01:54.6]} 20. f5 {[%clk 0:01:52.6]} 20... dxc3 {[%clk 0:01:43.3]}
21. Qxd5 {[%clk 0:01:52.1]} 21... Rxd5 {[%clk 0:01:43]} 22. Rxd5 {[%clk
0:01:42.1]} 22... Bxd5 {[%clk 0:01:42.9]} 23. bxc3 {[%clk 0:01:42.7]} 23... Bxb3
{[%clk 0:01:41.1]} 24. axb3 {[%clk 0:01:42.6]} 24... c4+ {[%clk 0:01:41.5]} 25.
Bf2 {[%clk 0:01:34.7]} 25... Bxf2+ {[%clk 0:01:35.7]} 26. Rxf2 {[%clk
0:01:35.6]} 26... cxb3 {[%clk 0:01:35.9]} 27. Rf1 {[%clk 0:01:36.5]} 27... Rb8
{[%clk 0:01:27.6]} 0-1

[Event "*** Titled Tuesday Blitz"]
[Site "Chess.com"]
[Date "2021.03.30"]
[Round "2"]
[White "crazy_but_lazy"]
[Black "AndreyNeves"]
[Result "1-0"]
[WhiteElo "2462"]
[BlackElo "2257"]
[TimeControl "180+1"]
[EndTime "10:14:27 PDT"]
[Termination "crazy_but_lazy won by resignation"]

1. d4 {[%clk 0:03:00.9]} 1... d5 {[%clk 0:02:59.2]} 2. c4 {[%clk 0:03:00.5]}
2... e6 {[%clk 0:02:59.1]} 3. Nc3 {[%clk 0:03:00.6]} 3... Be7 {[%clk 0:02:58.5]}
4. cxd5 {[%clk 0:03:00.7]} 4... exd5 {[%clk 0:02:57.8]} 5. Nf3 {[%clk
0:03:00.7]} 5... c6 {[%clk 0:02:57.6]} 6. Bf4 {[%clk 0:03:00.2]} 6... Bf5 {[%clk
0:02:55.9]} 7. e3 {[%clk 0:03:00.2]} 7... Nd7 {[%clk 0:02:53.1]} 8. Be2 {[%clk
0:02:54.7]} 8... Ngf6 {[%clk 0:02:51.9]} 9. h3 {[%clk 0:02:54.5]} 9... O-O
{[%clk 0:02:51.3]} 10. O-O {[%clk 0:02:54.6]} 10... a5 {[%clk 0:02:49.1]} 11.
Ne5 {[%clk 0:02:51.4]} 11... Nxe5 {[%clk 0:02:45.4]} 12. Bxe5 {[%clk 0:02:50.6]}
12... Ne4 {[%clk 0:02:30.3]} 13. Nxe4 {[%clk 0:02:40.1]} 13... Bxe4 {[%clk
0:02:29.7]} 14. Bd3 {[%clk 0:02:40.5]} 14... Bxd3 {[%clk 0:02:28.6]} 15. Qxd3
{[%clk 0:02:40.8]} 15... Bd6 {[%clk 0:02:22.9]} 16. Bxd6 {[%clk 0:02:40]} 16...
Qxd6 {[%clk 0:02:22.3]} 17. Rfc1 {[%clk 0:02:34.1]} 17... f5 {[%clk 0:02:21]}
18. g3 {[%clk 0:02:32.5]} 18... g5 {[%clk 0:02:16.8]} 19. Re1 {[%clk 0:02:18.1]}
19... Kh8 {[%clk 0:02:12.6]} 20. Kg2 {[%clk 0:01:56.9]} 20... f4 {[%clk
0:02:01.1]} 21. exf4 {[%clk 0:01:57.8]} 21... gxf4 {[%clk 0:02:00.5]} 22. Re5
{[%clk 0:01:53.1]} 22... f3+ {[%clk 0:01:59.2]} 23. Kh2 {[%clk 0:01:52.4]} 23...
Qh6 {[%clk 0:01:50.4]} 24. Rae1 {[%clk 0:01:48.9]} 24... Rad8 {[%clk 0:01:39.8]}
25. Re7 {[%clk 0:01:46.3]} 25... b5 {[%clk 0:01:36]} 26. R1e6 {[%clk 0:01:34.3]}
26... Rf6 {[%clk 0:01:27.9]} 27. Rxf6 {[%clk 0:01:33.1]} 1-0

[Event "*** Titled Tuesday Blitz"]
[Site "Chess.com"]
[Date "2021.03.30"]
[Round "2"]
[White "SHIVACalypso"]
[Black "ChessWarrior3"]
[Result "1-0"]
[WhiteElo "2401"]
[BlackElo "2097"]
[TimeControl "180+1"]
[EndTime "10:14:36 PDT"]
[Termination "SHIVACalypso won by resignation"]

1. Nf3 {[%clk 0:03:00.9]} 1... c5 {[%clk 0:02:58.9]} 2. c4 {[%clk 0:03:01.8]}
2... Nc6 {[%clk 0:02:57.5]} 3. g3 {[%clk 0:03:02.1]} 3... e5 {[%clk 0:02:56.7]}
4. Nc3 {[%clk 0:03:01.2]} 4... g6 {[%clk 0:02:56.9]} 5. Bg2 {[%clk 0:03:01.6]}
5... Bg7 {[%clk 0:02:54.2]} 6. O-O {[%clk 0:02:59.4]} 6... Nge7 {[%clk
0:02:54.7]} 7. Ne1 {[%clk 0:02:59.9]} 7... d6 {[%clk 0:02:39.6]} 8. Nc2 {[%clk
0:03:00]} 8... Be6 {[%clk 0:02:35.9]} 9. Ne3 {[%clk 0:02:59.9]} 9... O-O {[%clk
0:02:33.6]} 10. Ned5 {[%clk 0:02:57.7]} 10... Bg4 {[%clk 0:02:20.4]} 11. d3
{[%clk 0:02:42.1]} 11... Nxd5 {[%clk 0:02:18.6]} 12. Nxd5 {[%clk 0:02:39.3]}
12... Rb8 {[%clk 0:02:18]} 13. h3 {[%clk 0:02:32.3]} 13... Be6 {[%clk
0:02:14.2]} 14. a3 {[%clk 0:02:31]} 14... Qd7 {[%clk 0:02:13.8]} 15. Kh2 {[%clk
0:02:27.3]} 15... a6 {[%clk 0:02:09.3]} 16. Rb1 {[%clk 0:02:23.3]} 16... b5
{[%clk 0:02:08.5]} 17. cxb5 {[%clk 0:02:21.6]} 17... axb5 {[%clk 0:02:08.2]} 18.
b4 {[%clk 0:02:21.4]} 18... c4 {[%clk 0:02:01.6]} 19. dxc4 {[%clk 0:02:16.4]}
19... bxc4 {[%clk 0:02:02.5]} 20. Qc2 {[%clk 0:02:00.1]} 20... Ne7 {[%clk
0:01:37]} 21. Qxc4 {[%clk 0:01:40.1]} 21... Nxd5 {[%clk 0:01:36.8]} 22. Bxd5
{[%clk 0:01:41]} 22... Bxh3 {[%clk 0:01:37]} 23. Rd1 {[%clk 0:01:28.1]} 23...
Be6 {[%clk 0:01:34.1]} 24. Be3 {[%clk 0:01:16.8]} 24... Rfc8 {[%clk 0:01:33.9]}
25. Qb3 {[%clk 0:01:14.5]} 25... f5 {[%clk 0:01:30]} 26. Bxe6+ {[%clk
0:01:11.8]} 1-0

[Event "*** Titled Tuesday Blitz"]
[Site "Chess.com"]
[Date "2021.03.30"]
[Round "2"]
[White "gilbert_gm"]
[Black "Gabix_94"]
[Result "1-0"]
[WhiteElo "2552"]
[BlackElo "2792"]
[TimeControl "180+1"]
[EndTime "10:14:43 PDT"]
[Termination "gilbert_gm won by resignation"]

1. d4 {[%clk 0:02:59.8]} 1... d5 {[%clk 0:02:58.7]} 2. Nf3 {[%clk 0:03:00]} 2...
Bf5 {[%clk 0:02:58.1]} 3. Bf4 {[%clk 0:02:58.1]} 3... e6 {[%clk 0:02:58.3]} 4.
e3 {[%clk 0:02:58.3]} 4... Bd6 {[%clk 0:02:58.7]} 5. Bd3 {[%clk 0:02:58.1]} 5...
Ne7 {[%clk 0:02:58.9]} 6. O-O {[%clk 0:02:56]} 6... O-O {[%clk 0:02:57.4]} 7.
Bg3 {[%clk 0:02:54.2]} 7... Bxg3 {[%clk 0:02:53.2]} 8. hxg3 {[%clk 0:02:55.1]}
8... Nd7 {[%clk 0:02:53.7]} 9. c4 {[%clk 0:02:51.7]} 9... c6 {[%clk 0:02:51.2]}
10. Nc3 {[%clk 0:02:48.9]} 10... h6 {[%clk 0:02:49.6]} 11. e4 {[%clk 0:02:41.3]}
11... dxe4 {[%clk 0:02:44.4]} 12. Nxe4 {[%clk 0:02:42.2]} 12... Bxe4 {[%clk
0:02:42.4]} 13. Bxe4 {[%clk 0:02:42.2]} 13... Qb6 {[%clk 0:02:42.3]} 14. Qc2
{[%clk 0:02:23]} 14... Rad8 {[%clk 0:02:39.1]} 15. Rad1 {[%clk 0:02:15.9]} 15...
c5 {[%clk 0:02:34.4]} 16. d5 {[%clk 0:02:04.9]} 16... exd5 {[%clk 0:02:33.2]}
17. Bxd5 {[%clk 0:02:02.1]} 17... Nf6 {[%clk 0:02:32.6]} 18. Be4 {[%clk
0:01:52.9]} 18... Qc7 {[%clk 0:02:15.1]} 19. Rfe1 {[%clk 0:01:47.4]} 19... b6
{[%clk 0:02:09.3]} 20. b3 {[%clk 0:01:47.2]} 20... a6 {[%clk 0:02:05.8]} 21. Qe2
{[%clk 0:01:38.3]} 21... Rxd1 {[%clk 0:01:55.8]} 22. Rxd1 {[%clk 0:01:37.4]}
22... Re8 {[%clk 0:01:56.3]} 23. Bb1 {[%clk 0:01:34]} 23... Nc6 {[%clk
0:01:52.6]} 24. Qd2 {[%clk 0:01:30.7]} 24... Rd8 {[%clk 0:01:46.4]} 25. Qe2
{[%clk 0:01:30.4]} 25... Rxd1+ {[%clk 0:01:42.4]} 26. Qxd1 {[%clk 0:01:31.3]}
26... b5 {[%clk 0:01:42.7]} 27. cxb5 {[%clk 0:01:24.1]} 27... axb5 {[%clk
0:01:43.6]} 28. Bd3 {[%clk 0:01:19.7]} 28... Qd6 {[%clk 0:01:36.8]} 29. Bh7+
{[%clk 0:01:18]} 1-0

[Event "*** Titled Tuesday Blitz"]
[Site "Chess.com"]
[Date "2021.03.30"]
[Round "2"]
[White "DenisQ"]
[Black "Redbandit87"]
[Result "1-0"]
[WhiteElo "2637"]
[BlackElo "2355"]
[TimeControl "180+1"]
[EndTime "10:14:43 PDT"]
[Termination "DenisQ won by resignation"]

1. Nf3 {[%clk 0:03:00.9]} 1... d5 {[%clk 0:02:57.5]} 2. c4 {[%clk 0:02:59.5]}
2... e6 {[%clk 0:02:57.3]} 3. g3 {[%clk 0:02:58.9]} 3... Nf6 {[%clk 0:02:57.8]}
4. Bg2 {[%clk 0:02:58.6]} 4... c6 {[%clk 0:02:53.3]} 5. b3 {[%clk 0:02:52.1]}
5... Bd6 {[%clk 0:02:52]} 6. O-O {[%clk 0:02:52]} 6... O-O {[%clk 0:02:51.3]} 7.
d4 {[%clk 0:02:51.6]} 7... Nbd7 {[%clk 0:02:47.2]} 8. Nc3 {[%clk 0:02:50.8]}
8... b6 {[%clk 0:02:47.3]} 9. e4 {[%clk 0:02:47.1]} 9... dxe4 {[%clk 0:02:46.6]}
10. Ng5 {[%clk 0:02:46.7]} 10... Bb7 {[%clk 0:02:41.2]} 11. Ngxe4 {[%clk
0:02:45.1]} 11... Nxe4 {[%clk 0:02:39.3]} 12. Nxe4 {[%clk 0:02:44.7]} 12... Be7
{[%clk 0:02:37.5]} 13. Bf4 {[%clk 0:02:41.6]} 13... Rc8 {[%clk 0:02:29.5]} 14.
Nd6 {[%clk 0:02:39.7]} 14... Bxd6 {[%clk 0:02:28.7]} 15. Bxd6 {[%clk 0:02:40.6]}
15... Re8 {[%clk 0:02:29.3]} 16. c5 {[%clk 0:02:35.5]} 16... Nf6 {[%clk
0:02:18.3]} 17. Re1 {[%clk 0:02:34.7]} 17... Nd5 {[%clk 0:02:15.5]} 18. Rc1
{[%clk 0:02:33.8]} 18... Qd7 {[%clk 0:02:14.7]} 19. Qd2 {[%clk 0:02:32.7]} 19...
b5 {[%clk 0:02:09.8]} 20. h4 {[%clk 0:02:31]} 20... a5 {[%clk 0:02:07.6]} 21.
Qxa5 {[%clk 0:02:24.4]} 21... Ra8 {[%clk 0:02:07.2]} 22. Qd2 {[%clk 0:02:24.3]}
22... Ra3 {[%clk 0:02:05.2]} 23. h5 {[%clk 0:02:21.3]} 23... h6 {[%clk
0:02:03.8]} 24. Be4 {[%clk 0:02:20]} 24... Rea8 {[%clk 0:02:02.6]} 25. Bb1
{[%clk 0:02:19.6]} 25... b4 {[%clk 0:02:02]} 26. Qc2 {[%clk 0:02:15]} 26... f5
{[%clk 0:01:55.7]} 27. g4 {[%clk 0:02:03]} 27... Qf7 {[%clk 0:01:39.8]} 28. gxf5
{[%clk 0:02:02.7]} 28... exf5 {[%clk 0:01:31]} 29. Qxf5 {[%clk 0:01:57]} 29...
Qxf5 {[%clk 0:01:31.1]} 30. Bxf5 {[%clk 0:01:57.2]} 30... Rxa2 {[%clk
0:01:30.7]} 31. Be6+ {[%clk 0:01:52.4]} 31... Kh7 {[%clk 0:01:30.5]} 32. Bxd5
{[%clk 0:01:52.6]} 32... cxd5 {[%clk 0:01:30.6]} 33. c6 {[%clk 0:01:52.7]} 33...
Ba6 {[%clk 0:01:30.3]} 34. Re7 {[%clk 0:01:48.5]} 34... Bb5 {[%clk 0:01:29.3]}
35. c7 {[%clk 0:01:47.7]} 35... Rg8 {[%clk 0:01:12.3]} 36. c8=Q {[%clk
0:01:44.4]} 1-0

[Event "*** Titled Tuesday Blitz"]
[Site "Chess.com"]
[Date "2021.03.30"]
[Round "2"]
[White "Sergey85Rodchenkov"]
[Black "lanita_1408"]
[Result "1-0"]
[WhiteElo "2511"]
[BlackElo "2144"]
[TimeControl "180+1"]
[EndTime "10:14:50 PDT"]
[Termination "Sergey85Rodchenkov won by resignation"]

1. Nf3 {[%clk 0:03:00.9]} 1... Nf6 {[%clk 0:02:57]} 2. c4 {[%clk 0:03:00.1]}
2... e6 {[%clk 0:02:56]} 3. b3 {[%clk 0:02:59.6]} 3... d5 {[%clk 0:02:56.1]} 4.
Bb2 {[%clk 0:02:59.1]} 4... b6 {[%clk 0:02:55.9]} 5. e3 {[%clk 0:02:59.2]} 5...
Bb7 {[%clk 0:02:55.6]} 6. d4 {[%clk 0:02:59.3]} 6... Nbd7 {[%clk 0:02:55.6]} 7.
Bd3 {[%clk 0:02:59.4]} 7... Bd6 {[%clk 0:02:54.8]} 8. O-O {[%clk 0:02:58.9]}
8... Ne4 {[%clk 0:02:54.8]} 9. Nc3 {[%clk 0:02:54.3]} 9... a6 {[%clk 0:02:55.1]}
10. Rc1 {[%clk 0:02:48.9]} 10... f5 {[%clk 0:02:47.1]} 11. cxd5 {[%clk 0:02:41]}
11... exd5 {[%clk 0:02:45.8]} 12. Qe2 {[%clk 0:02:25.1]} 12... O-O {[%clk
0:02:41.5]} 13. Rfd1 {[%clk 0:02:25]} 13... Qf6 {[%clk 0:02:38.7]} 14. g3 {[%clk
0:02:11.7]} 14... g5 {[%clk 0:02:31]} 15. Ne5 {[%clk 0:02:00.5]} 15... Nxe5
{[%clk 0:02:28.7]} 16. dxe5 {[%clk 0:02:00.2]} 16... Bxe5 {[%clk 0:02:28.3]} 17.
Bxe4 {[%clk 0:01:55.9]} 17... fxe4 {[%clk 0:02:24]} 18. Rd2 {[%clk 0:01:44.5]}
18... d4 {[%clk 0:02:04.6]} 19. exd4 {[%clk 0:01:39.8]} 19... Bxd4 {[%clk
0:02:04.7]} 20. Nxe4 {[%clk 0:01:34.7]} 20... Bxe4 {[%clk 0:01:46.3]} 21. Rxd4
{[%clk 0:01:28.5]} 21... Bf3 {[%clk 0:01:42.9]} 22. Qd2 {[%clk 0:01:25.5]} 22...
Qf5 {[%clk 0:01:36.2]} 23. Rd7 {[%clk 0:01:19.1]} 23... Rf7 {[%clk 0:01:21.9]}
24. Rxf7 {[%clk 0:01:18.3]} 1-0

[Event "*** Titled Tuesday Blitz"]
[Site "Chess.com"]
[Date "2021.03.30"]
[Round "2"]
[White "juancruzarias"]
[Black "AniJak"]
[Result "1/2-1/2"]
[WhiteElo "2563"]
[BlackElo "2321"]
[TimeControl "180+1"]
[EndTime "10:14:58 PDT"]
[Termination "Game drawn by repetition"]

1. d4 {[%clk 0:03:00.4]} 1... d5 {[%clk 0:02:59.4]} 2. Nf3 {[%clk 0:02:55.9]}
2... Nf6 {[%clk 0:02:58.5]} 3. Bg5 {[%clk 0:02:54.7]} 3... Ne4 {[%clk 0:02:57]}
4. Bf4 {[%clk 0:02:52.3]} 4... g6 {[%clk 0:02:56.5]} 5. Nbd2 {[%clk 0:02:51.6]}
5... Bg7 {[%clk 0:02:52.2]} 6. e3 {[%clk 0:02:50.9]} 6... O-O {[%clk 0:02:50.8]}
7. Bd3 {[%clk 0:02:50.1]} 7... Nxd2 {[%clk 0:02:46]} 8. Qxd2 {[%clk 0:02:45.2]}
8... c5 {[%clk 0:02:46.9]} 9. c3 {[%clk 0:02:42.6]} 9... Nc6 {[%clk 0:02:46.2]}
10. O-O {[%clk 0:02:37.6]} 10... cxd4 {[%clk 0:02:42.4]} 11. exd4 {[%clk
0:02:36.7]} 11... Bf5 {[%clk 0:02:40.4]} 12. Bxf5 {[%clk 0:02:30]} 12... gxf5
{[%clk 0:02:41.3]} 13. Bh6 {[%clk 0:02:30.4]} 13... Qd6 {[%clk 0:02:35.6]} 14.
Bxg7 {[%clk 0:02:27.9]} 14... Kxg7 {[%clk 0:02:36.4]} 15. Rfe1 {[%clk
0:02:27.8]} 15... Qg6 {[%clk 0:02:33.5]} 16. Ne5 {[%clk 0:02:26.2]} 16... Nxe5
{[%clk 0:02:33]} 17. Rxe5 {[%clk 0:02:26.3]} 17... e6 {[%clk 0:02:33.3]} 18.
Rae1 {[%clk 0:02:15.7]} 18... Kh8 {[%clk 0:02:32.9]} 19. R5e3 {[%clk 0:02:09.9]}
19... Rg8 {[%clk 0:02:32.1]} 20. Rg3 {[%clk 0:02:07.4]} 20... Qh5 {[%clk
0:02:27.9]} 21. Qf4 {[%clk 0:02:04.5]} 21... Rxg3 {[%clk 0:02:19]} 22. hxg3
{[%clk 0:02:00.9]} 22... Qg6 {[%clk 0:02:17]} 23. f3 {[%clk 0:01:58.9]} 23...
Rg8 {[%clk 0:02:14.9]} 24. Kf2 {[%clk 0:01:58]} 24... Qf6 {[%clk 0:02:09.4]} 25.
Rh1 {[%clk 0:01:54.1]} 25... b6 {[%clk 0:01:54.2]} 26. g4 {[%clk 0:01:53.2]}
26... Qg5 {[%clk 0:01:44.4]} 27. Qe5+ {[%clk 0:01:47.1]} 27... Rg7 {[%clk
0:01:43.7]} 28. Qb8+ {[%clk 0:01:26.9]} 28... Rg8 {[%clk 0:01:43.4]} 29. Qe5+
{[%clk 0:01:23.1]} 29... Rg7 {[%clk 0:01:43.2]} 30. Qb8+ {[%clk 0:00:59]} 30...
Rg8 {[%clk 0:01:42.1]} 31. Qe5+ {[%clk 0:00:56.5]} 1/2-1/2

[Event "*** Titled Tuesday Blitz"]
[Site "Chess.com"]
[Date "2021.03.30"]
[Round "2"]
[White "SantoBlue"]
[Black "Nozdrachev_Leonid"]
[Result "1-0"]
[WhiteElo "2815"]
[BlackElo "2540"]
[TimeControl "180+1"]
[EndTime "10:15:02 PDT"]
[Termination "SantoBlue won by resignation"]

1. e4 {[%clk 0:03:00.9]} 1... d6 {[%clk 0:02:58.3]} 2. d4 {[%clk 0:02:59.6]}
2... Nf6 {[%clk 0:02:58.3]} 3. Bd3 {[%clk 0:02:57.9]} 3... e5 {[%clk 0:02:57.5]}
4. c3 {[%clk 0:02:58.1]} 4... g6 {[%clk 0:02:53.9]} 5. Nf3 {[%clk 0:02:56.7]}
5... Nbd7 {[%clk 0:02:52.9]} 6. O-O {[%clk 0:02:56.7]} 6... Bg7 {[%clk
0:02:53.1]} 7. Be3 {[%clk 0:02:56.2]} 7... O-O {[%clk 0:02:53.1]} 8. Nbd2 {[%clk
0:02:56.2]} 8... Re8 {[%clk 0:02:51.2]} 9. Re1 {[%clk 0:02:55.5]} 9... a6 {[%clk
0:02:50]} 10. a4 {[%clk 0:02:54.9]} 10... b6 {[%clk 0:02:49.3]} 11. h3 {[%clk
0:02:54.8]} 11... Bb7 {[%clk 0:02:49.1]} 12. Qc2 {[%clk 0:02:54.4]} 12... d5
{[%clk 0:02:46.5]} 13. Bg5 {[%clk 0:02:53.1]} 13... dxe4 {[%clk 0:02:39.2]} 14.
Bxe4 {[%clk 0:02:48.2]} 14... Bxe4 {[%clk 0:02:37]} 15. Nxe4 {[%clk 0:02:48]}
15... exd4 {[%clk 0:02:36.4]} 16. Nxd4 {[%clk 0:02:42.8]} 16... Qc8 {[%clk
0:02:15.1]} 17. Nc6 {[%clk 0:02:27.4]} 17... Qb7 {[%clk 0:02:08.1]} 18. Nxf6+
{[%clk 0:02:15.9]} 18... Nxf6 {[%clk 0:02:09]} 19. Ne7+ {[%clk 0:02:13.7]} 19...
Kf8 {[%clk 0:02:06.5]} 20. Qd2 {[%clk 0:01:45.1]} 20... Rxe7 {[%clk 0:01:47.1]}
21. Rxe7 {[%clk 0:01:44.4]} 21... Kxe7 {[%clk 0:01:48]} 22. Qf4 {[%clk
0:01:10.6]} 22... Qc6 {[%clk 0:01:47.4]} 23. Qb4+ {[%clk 0:01:04]} 23... Qd6
{[%clk 0:01:44.2]} 24. Qe4+ {[%clk 0:01:02.9]} 24... Kd7 {[%clk 0:01:38.1]} 25.
Qxa8 {[%clk 0:01:02.1]} 25... a5 {[%clk 0:01:36.3]} 26. Qf3 {[%clk 0:01:00.3]}
26... Ke7 {[%clk 0:01:25.5]} 27. Re1+ {[%clk 0:00:59.2]} 1-0